[Event "Titled Tuesday Blitz July 18 Early 2023"]
[White "Liu, Casper"]
[Black "Zaim, Marian"]
[WhiteFideId "1454153"]
[BlackFideId "1204114"]
[WhiteElo "2450"]
[BlackElo "2342"]
[Result "1-0"]
[Round "11"]
[TimeControl "180+2"]
[Date "2023.07.18"]
[WhiteClock "0:00:28"]
[BlackClock "0:00:00"]
[Board "95"]

1. e4 {[%clk 0:02:59]}  d6 {[%clk 0:03:00]} 2. d4 {[%clk 0:02:59]}  Nf6 {[%clk 0:03:00]} 3. Bd3 {[%clk 0:02:57]}  g6 {[%clk 0:02:59]} 4. h4 {[%clk 0:02:57]}  h5 {[%clk 0:02:59]} 5. Nf3 {[%clk 0:02:57]}  Bg7 {[%clk 0:02:58]} 6. Ng5 {[%clk 0:02:55]}  Nbd7 {[%clk 0:02:56]} 7. Bc4 {[%clk 0:02:52]}  O-O {[%clk 0:02:43]} 8. Qd3 {[%clk 0:02:52]}  Nb6 {[%clk 0:02:37]} 9. Bb3 {[%clk 0:02:44]}  e6 {[%clk 0:02:31]} 10. Nc3 {[%clk 0:02:43]}  c5 {[%clk 0:02:30]} 11. Be3 {[%clk 0:02:39]}  Qe7 {[%clk 0:02:12]} 12. f3 {[%clk 0:02:22]}  cxd4 {[%clk 0:01:46]} 13. Bxd4 {[%clk 0:02:21]}  d5 {[%clk 0:01:46]} 14. O-O-O {[%clk 0:02:05]}  dxe4 {[%clk 0:01:43]} 15. fxe4 {[%clk 0:01:47]}  e5 {[%clk 0:01:37]} 16. Be3 {[%clk 0:01:26]}  Bg4 {[%clk 0:01:32]} 17. Rdf1 {[%clk 0:01:22]}  Be6 {[%clk 0:01:09]} 18. Nxe6 {[%clk 0:01:15]}  fxe6 {[%clk 0:01:08]} 19. Qb5 {[%clk 0:01:15]}  Nfd7 {[%clk 0:01:00]} 20. Bg5 {[%clk 0:01:13]}  Qe8 {[%clk 0:00:47]} 21. Qb4 {[%clk 0:01:05]}  Rc8 {[%clk 0:00:42]} 22. Nb5 {[%clk 0:00:57]}  Rc6 {[%clk 0:00:21]} 23. Nd6 {[%clk 0:00:55]}  Qb8 {[%clk 0:00:19]} 24. Bxe6+ {[%clk 0:00:49]}  Kh7 {[%clk 0:00:19]} 25. Be7 {[%clk 0:00:49]}  Rxf1+ {[%clk 0:00:18]} 26. Rxf1 {[%clk 0:00:50]}  a5 {[%clk 0:00:13]} 27. Qd2 {[%clk 0:00:47]}  a4 {[%clk 0:00:12]} 28. Rf7 {[%clk 0:00:47]}  a3 {[%clk 0:00:11]} 29. Nf5 {[%clk 0:00:38]}  gxf5 {[%clk 0:00:00]} 30. Qg5 {[%clk 0:00:28]} 1-0


[Site "https://www.chess.com"]

[Event "Titled Tuesday Blitz July 18 Early 2023"]
[White "Okike, David"]
[Black "LangesNasenhaar"]
[WhiteFideId "8500134"]
[WhiteElo "2349"]
[BlackElo "2444"]
[Result "0-1"]
[Round "11"]
[TimeControl "180+2"]
[Date "2023.07.18"]
[WhiteClock "0:01:50"]
[BlackClock "0:00:18"]
[Board "96"]

1. e4 {[%clk 0:03:00]}  d6 {[%clk 0:02:59]} 2. d4 {[%clk 0:03:00]}  Nf6 {[%clk 0:03:00]} 3. Nc3 {[%clk 0:03:00]}  e5 {[%clk 0:03:00]} 4. f3 {[%clk 0:02:58]}  exd4 {[%clk 0:02:57]} 5. Qxd4 {[%clk 0:02:58]}  Nc6 {[%clk 0:02:58]} 6. Bb5 {[%clk 0:02:58]}  Bd7 {[%clk 0:02:58]} 7. Bxc6 {[%clk 0:02:58]}  Bxc6 {[%clk 0:02:59]} 8. Bf4 {[%clk 0:02:57]}  Be7 {[%clk 0:02:59]} 9. O-O-O {[%clk 0:02:57]}  O-O {[%clk 0:02:59]} 10. Nge2 {[%clk 0:02:57]}  Nd7 {[%clk 0:02:57]} 11. Nd5 {[%clk 0:02:51]}  Bxd5 {[%clk 0:02:54]} 12. Qxd5 {[%clk 0:02:51]}  Bf6 {[%clk 0:02:50]} 13. Kb1 {[%clk 0:02:49]}  Nb6 {[%clk 0:02:43]} 14. Qd3 {[%clk 0:02:47]}  Qe8 {[%clk 0:02:33]} 15. Bc1 {[%clk 0:02:45]}  Rd8 {[%clk 0:02:30]} 16. f4 {[%clk 0:02:43]}  Na4 {[%clk 0:02:26]} 17. b3 {[%clk 0:02:42]}  Nc5 {[%clk 0:02:26]} 18. Qf3 {[%clk 0:02:36]}  Qxe4 {[%clk 0:02:26]} 19. Rhf1 {[%clk 0:02:34]}  Qxf3 {[%clk 0:02:22]} 20. Rxf3 {[%clk 0:02:33]}  Rfe8 {[%clk 0:02:23]} 21. Nc3 {[%clk 0:02:31]}  c6 {[%clk 0:02:16]} 22. g3 {[%clk 0:02:30]}  d5 {[%clk 0:02:13]} 23. Ba3 {[%clk 0:02:26]}  Ne4 {[%clk 0:02:11]} 24. Nxe4 {[%clk 0:02:25]}  dxe4 {[%clk 0:02:01]} 25. Rff1 {[%clk 0:02:25]}  Bd4 {[%clk 0:01:47]} 26. Bb4 {[%clk 0:02:21]}  f5 {[%clk 0:01:43]} 27. c4 {[%clk 0:02:12]}  c5 {[%clk 0:01:31]} 28. Be1 {[%clk 0:02:08]}  Kf7 {[%clk 0:01:14]} 29. Kc2 {[%clk 0:02:08]}  h5 {[%clk 0:01:12]} 30. Ba5 {[%clk 0:02:03]}  b6 {[%clk 0:01:12]} 31. Bc3 {[%clk 0:02:03]}  Rd7 {[%clk 0:01:05]} 32. Rfe1 {[%clk 0:01:59]}  Red8 {[%clk 0:01:04]} 33. Re2 {[%clk 0:01:59]}  Bxc3 {[%clk 0:01:02]} 34. Rxd7+ {[%clk 0:01:59]}  Rxd7 {[%clk 0:01:02]} 35. Kxc3 {[%clk 0:01:59]}  Rd3+ {[%clk 0:01:01]} 36. Kc2 {[%clk 0:02:00]}  h4 {[%clk 0:00:57]} 37. Rg2 {[%clk 0:01:58]}  hxg3 {[%clk 0:00:52]} 38. hxg3 {[%clk 0:01:58]}  Rf3 {[%clk 0:00:49]} 39. Kd2 {[%clk 0:01:57]}  Kg6 {[%clk 0:00:47]} 40. Ke2 {[%clk 0:01:57]}  Kh5 {[%clk 0:00:41]} 41. Rh2+ {[%clk 0:01:57]}  Kg4 {[%clk 0:00:41]} 42. Rh7 {[%clk 0:01:58]}  Kxg3 {[%clk 0:00:41]} 43. Rxg7+ {[%clk 0:01:58]}  Kxf4 {[%clk 0:00:41]} 44. Rxa7 {[%clk 0:01:58]}  Rh3 {[%clk 0:00:39]} 45. Ra6 {[%clk 0:01:56]}  Rh2+ {[%clk 0:00:38]} 46. Kd1 {[%clk 0:01:57]}  Ke3 {[%clk 0:00:34]} 47. Rxb6 {[%clk 0:01:57]}  Rxa2 {[%clk 0:00:29]} 48. Rb5 {[%clk 0:01:57]}  f4 {[%clk 0:00:29]} 49. Rxc5 {[%clk 0:01:56]}  f3 {[%clk 0:00:30]} 50. Rf5 {[%clk 0:01:56]}  f2 {[%clk 0:00:29]} 51. Kc1 {[%clk 0:01:56]}  Ra1+ {[%clk 0:00:28]} 52. Kc2 {[%clk 0:01:55]}  f1=Q {[%clk 0:00:28]} 53. Rxf1 {[%clk 0:01:56]}  Rxf1 {[%clk 0:00:28]} 54. c5 {[%clk 0:01:56]}  Kd4 {[%clk 0:00:26]} 55. b4 {[%clk 0:01:57]}  Kc4 {[%clk 0:00:25]} 56. Kd2 {[%clk 0:01:56]}  Kxb4 {[%clk 0:00:22]} 57. c6 {[%clk 0:01:56]}  Rf6 {[%clk 0:00:20]} 58. Ke3 {[%clk 0:01:56]}  Rxc6 {[%clk 0:00:20]} 59. Kxe4 {[%clk 0:01:57]}  Kc4 {[%clk 0:00:20]} 60. Ke5 {[%clk 0:01:55]}  Rc5+ {[%clk 0:00:20]} 61. Ke4 {[%clk 0:01:55]}  Rd5 {[%clk 0:00:20]} 62. Kf4 {[%clk 0:01:54]}  Kd4 {[%clk 0:00:20]} 63. Kg4 {[%clk 0:01:54]}  Re5 {[%clk 0:00:21]} 64. Kf4 {[%clk 0:01:54]}  Re4+ {[%clk 0:00:21]} 65. Kf5 {[%clk 0:01:54]}  Kd5 {[%clk 0:00:22]} 66. Kf6 {[%clk 0:01:54]}  Rf4+ {[%clk 0:00:21]} 67. Kg5 {[%clk 0:01:54]}  Ke5 {[%clk 0:00:21]} 68. Kg6 {[%clk 0:01:54]}  Rf3 {[%clk 0:00:20]} 69. Kg7 {[%clk 0:01:53]}  Ke6 {[%clk 0:00:20]} 70. Kh6 {[%clk 0:01:51]}  Rg3 {[%clk 0:00:19]} 71. Kh5 {[%clk 0:01:52]}  Kf5 {[%clk 0:00:18]} 72. Kh4 {[%clk 0:01:50]}  Rg8 {[%clk 0:00:18]} 0-1


[Site "https://www.chess.com"]

[Event "Titled Tuesday Blitz July 18 Early 2023"]
[White "Ljukin, Sergei"]
[Black "kiwibobo"]
[WhiteFideId "14102200"]
[WhiteElo "2453"]
[BlackElo "2318"]
[Result "1-0"]
[Round "11"]
[TimeControl "180+2"]
[Date "2023.07.18"]
[WhiteClock "0:00:32"]
[BlackClock "0:00:05"]
[Board "104"]

1. e4 {[%clk 0:02:57]}  e5 {[%clk 0:02:59]} 2. Nf3 {[%clk 0:02:56]}  Nc6 {[%clk 0:03:00]} 3. Bb5 {[%clk 0:02:57]}  a6 {[%clk 0:03:00]} 4. Ba4 {[%clk 0:02:56]}  Nf6 {[%clk 0:03:00]} 5. Qe2 {[%clk 0:02:42]}  b5 {[%clk 0:02:59]} 6. Bb3 {[%clk 0:02:41]}  Bc5 {[%clk 0:03:00]} 7. c3 {[%clk 0:02:41]}  d6 {[%clk 0:03:00]} 8. d3 {[%clk 0:02:38]}  Bb6 {[%clk 0:02:55]} 9. Bg5 {[%clk 0:02:37]}  h6 {[%clk 0:02:55]} 10. Bh4 {[%clk 0:02:37]}  g5 {[%clk 0:02:55]} 11. Bg3 {[%clk 0:02:33]}  Bg4 {[%clk 0:02:12]} 12. Nbd2 {[%clk 0:02:34]}  Nh5 {[%clk 0:02:05]} 13. h3 {[%clk 0:02:27]}  Nxg3 {[%clk 0:02:04]} 14. fxg3 {[%clk 0:02:26]}  Bh5 {[%clk 0:02:00]} 15. g4 {[%clk 0:02:21]}  Bg6 {[%clk 0:02:00]} 16. Nf1 {[%clk 0:02:12]}  h5 {[%clk 0:01:55]} 17. gxh5 {[%clk 0:02:06]}  Bxh5 {[%clk 0:01:48]} 18. O-O-O {[%clk 0:02:04]}  Qf6 {[%clk 0:01:44]} 19. Bd5 {[%clk 0:02:03]}  Kd7 {[%clk 0:01:40]} 20. Kb1 {[%clk 0:01:54]}  g4 {[%clk 0:01:39]} 21. hxg4 {[%clk 0:01:50]}  Bxg4 {[%clk 0:01:39]} 22. Ng3 {[%clk 0:01:50]}  Rag8 {[%clk 0:01:36]} 23. Rxh8 {[%clk 0:01:47]}  Rxh8 {[%clk 0:01:33]} 24. Bxc6+ {[%clk 0:01:41]}  Kxc6 {[%clk 0:01:34]} 25. Nxe5+ {[%clk 0:01:41]}  dxe5 {[%clk 0:01:10]} 26. Qxg4 {[%clk 0:01:41]}  Rh4 {[%clk 0:00:55]} 27. Qe2 {[%clk 0:01:34]}  Qf2 {[%clk 0:00:25]} 28. Qxf2 {[%clk 0:01:11]}  Bxf2 {[%clk 0:00:26]} 29. Nf5 {[%clk 0:01:07]}  Rg4 {[%clk 0:00:24]} 30. g3 {[%clk 0:01:04]}  Kd7 {[%clk 0:00:20]} 31. Rf1 {[%clk 0:00:58]}  Bb6 {[%clk 0:00:17]} 32. Kc2 {[%clk 0:00:57]}  Ke6 {[%clk 0:00:16]} 33. Rh1 {[%clk 0:00:57]}  Bf2 {[%clk 0:00:10]} 34. Rf1 {[%clk 0:00:56]}  Bb6 {[%clk 0:00:10]} 35. Kd2 {[%clk 0:00:55]}  c5 {[%clk 0:00:09]} 36. Rh1 {[%clk 0:00:50]}  c4 {[%clk 0:00:09]} 37. Rh6+ {[%clk 0:00:49]}  f6 {[%clk 0:00:09]} 38. Rh7 {[%clk 0:00:48]}  Bc5 {[%clk 0:00:09]} 39. Rc7 {[%clk 0:00:38]}  Bf8 {[%clk 0:00:08]} 40. Rc6+ {[%clk 0:00:34]}  Kf7 {[%clk 0:00:07]} 41. Rxa6 {[%clk 0:00:32]}  cxd3 {[%clk 0:00:07]} 42. Kxd3 {[%clk 0:00:32]}  Bc5 {[%clk 0:00:05]} 43. Nh6+ {[%clk 0:00:32]} 1-0


[Site "https://www.chess.com"]

[Event "Titled Tuesday Blitz July 18 Early 2023"]
[White "Arnold, Ken"]
[Black "ExchangeAB"]
[WhiteFideId "2056836"]
[WhiteElo "2440"]
[BlackElo "2319"]
[Result "0-1"]
[Round "11"]
[TimeControl "180+2"]
[Date "2023.07.18"]
[WhiteClock "0:00:00"]
[BlackClock "0:00:37"]
[Board "105"]

1. d4 {[%clk 0:03:00]}  d5 {[%clk 0:02:59]} 2. c4 {[%clk 0:03:01]}  c6 {[%clk 0:03:00]} 3. cxd5 {[%clk 0:03:01]}  cxd5 {[%clk 0:03:00]} 4. Nf3 {[%clk 0:03:02]}  Nf6 {[%clk 0:03:00]} 5. Nc3 {[%clk 0:03:02]}  Nc6 {[%clk 0:03:00]} 6. Bf4 {[%clk 0:03:02]}  Bf5 {[%clk 0:03:00]} 7. e3 {[%clk 0:03:03]}  e6 {[%clk 0:03:01]} 8. Bb5 {[%clk 0:03:03]}  Nd7 {[%clk 0:02:55]} 9. Ne5 {[%clk 0:03:01]}  Ncxe5 {[%clk 0:02:39]} 10. Bxe5 {[%clk 0:03:00]}  a6 {[%clk 0:02:38]} 11. Bxd7+ {[%clk 0:02:58]}  Qxd7 {[%clk 0:02:38]} 12. O-O {[%clk 0:02:56]}  h5 {[%clk 0:02:01]} 13. Na4 {[%clk 0:02:53]}  f6 {[%clk 0:01:28]} 14. Nb6 {[%clk 0:02:37]}  Qd8 {[%clk 0:01:27]} 15. Qa4+ {[%clk 0:02:05]}  Kf7 {[%clk 0:01:27]} 16. Nxa8 {[%clk 0:01:03]}  fxe5 {[%clk 0:01:27]} 17. Rac1 {[%clk 0:00:59]}  Bd6 {[%clk 0:01:15]} 18. Nb6 {[%clk 0:00:39]}  Qxb6 {[%clk 0:01:14]} 19. Qd7+ {[%clk 0:00:38]}  Kg6 {[%clk 0:01:05]} 20. dxe5 {[%clk 0:00:32]}  Bxe5 {[%clk 0:01:05]} 21. b3 {[%clk 0:00:23]}  Rd8 {[%clk 0:01:04]} 22. Qe7 {[%clk 0:00:20]}  Bf6 {[%clk 0:01:00]} 23. Qc5 {[%clk 0:00:19]}  Qxc5 {[%clk 0:01:00]} 24. Rxc5 {[%clk 0:00:19]}  Rd7 {[%clk 0:00:59]} 25. Rfc1 {[%clk 0:00:18]}  Kf7 {[%clk 0:01:00]} 26. Rc7 {[%clk 0:00:17]}  Ke7 {[%clk 0:01:00]} 27. h3 {[%clk 0:00:16]}  Be5 {[%clk 0:01:00]} 28. Rxd7+ {[%clk 0:00:15]}  Kxd7 {[%clk 0:01:01]} 29. f3 {[%clk 0:00:13]}  h4 {[%clk 0:00:59]} 30. Kf2 {[%clk 0:00:13]}  Bd3 {[%clk 0:00:58]} 31. Rd1 {[%clk 0:00:12]}  Bg3+ {[%clk 0:00:58]} 32. Kg1 {[%clk 0:00:11]}  Bb5 {[%clk 0:00:58]} 33. e4 {[%clk 0:00:12]}  Bc6 {[%clk 0:00:59]} 34. exd5 {[%clk 0:00:12]}  exd5 {[%clk 0:00:58]} 35. Kf1 {[%clk 0:00:12]}  Bb5+ {[%clk 0:00:58]} 36. Kg1 {[%clk 0:00:12]}  Kd6 {[%clk 0:00:58]} 37. a4 {[%clk 0:00:11]}  Bc6 {[%clk 0:00:56]} 38. Kf1 {[%clk 0:00:11]}  b5 {[%clk 0:00:55]} 39. Ra1 {[%clk 0:00:11]}  bxa4 {[%clk 0:00:55]} 40. bxa4 {[%clk 0:00:10]}  d4 {[%clk 0:00:55]} 41. Ke2 {[%clk 0:00:10]}  a5 {[%clk 0:00:47]} 42. Kd3 {[%clk 0:00:11]}  Bf2 {[%clk 0:00:47]} 43. Rb1 {[%clk 0:00:05]}  Bxa4 {[%clk 0:00:43]} 44. Rb6+ {[%clk 0:00:05]}  Ke5 {[%clk 0:00:42]} 45. Rb8 {[%clk 0:00:00]}  Be3 {[%clk 0:00:37]} 0-1


[Site "https://www.chess.com"]

[Event "Titled Tuesday Blitz July 18 Early 2023"]
[White "Harriott, Tyrell"]
[Black "Ziatdinov, Raset"]
[WhiteFideId "2086484"]
[BlackFideId "2015323"]
[WhiteElo "2416"]
[BlackElo "2304"]
[Result "1-0"]
[Round "11"]
[TimeControl "180+2"]
[Date "2023.07.18"]
[WhiteClock "0:00:25"]
[BlackClock "0:00:04"]
[Board "108"]

1. d4 {[%clk 0:03:00]}  Nf6 {[%clk 0:01:32]} 2. e3 {[%clk 0:03:01]}  g6 {[%clk 0:01:32]} 3. Bd3 {[%clk 0:02:59]}  Bg7 {[%clk 0:01:31]} 4. f4 {[%clk 0:02:58]}  d6 {[%clk 0:01:31]} 5. Nf3 {[%clk 0:02:54]}  O-O {[%clk 0:01:30]} 6. O-O {[%clk 0:02:54]}  Nc6 {[%clk 0:01:31]} 7. e4 {[%clk 0:02:40]}  e5 {[%clk 0:01:28]} 8. d5 {[%clk 0:02:24]}  Ne7 {[%clk 0:01:19]} 9. fxe5 {[%clk 0:02:21]}  dxe5 {[%clk 0:01:18]} 10. c4 {[%clk 0:02:21]}  Nd7 {[%clk 0:01:15]} 11. Be3 {[%clk 0:02:20]}  b6 {[%clk 0:01:10]} 12. Nc3 {[%clk 0:02:15]}  f5 {[%clk 0:01:09]} 13. b4 {[%clk 0:02:13]}  f4 {[%clk 0:01:06]} 14. Bf2 {[%clk 0:02:11]}  h6 {[%clk 0:01:01]} 15. c5 {[%clk 0:02:08]}  g5 {[%clk 0:01:01]} 16. Kh1 {[%clk 0:01:57]}  Ng6 {[%clk 0:00:55]} 17. Qb3 {[%clk 0:01:41]}  g4 {[%clk 0:00:51]} 18. Ng1 {[%clk 0:01:35]}  Kh7 {[%clk 0:00:49]} 19. g3 {[%clk 0:01:32]}  fxg3 {[%clk 0:00:44]} 20. Bxg3 {[%clk 0:01:30]}  bxc5 {[%clk 0:00:41]} 21. Rxf8 {[%clk 0:01:22]}  Qxf8 {[%clk 0:00:39]} 22. Nb5 {[%clk 0:01:17]}  Qd8 {[%clk 0:00:24]} 23. Qc3 {[%clk 0:01:10]}  a6 {[%clk 0:00:23]} 24. Na3 {[%clk 0:01:06]}  cxb4 {[%clk 0:00:21]} 25. Qxb4 {[%clk 0:01:06]}  Qg5 {[%clk 0:00:15]} 26. Qe1 {[%clk 0:00:53]}  h5 {[%clk 0:00:15]} 27. Bf2 {[%clk 0:00:50]}  h4 {[%clk 0:00:14]} 28. Be3 {[%clk 0:00:49]}  Qh5 {[%clk 0:00:14]} 29. Be2 {[%clk 0:00:49]}  Nf4 {[%clk 0:00:13]} 30. Nh3 {[%clk 0:00:45]}  Nf6 {[%clk 0:00:06]} 31. Nxf4 {[%clk 0:00:39]}  exf4 {[%clk 0:00:06]} 32. Bd4 {[%clk 0:00:39]}  Qg6 {[%clk 0:00:04]} 33. Bd3 {[%clk 0:00:38]}  Bb7 {[%clk 0:00:03]} 34. Rb1 {[%clk 0:00:37]}  Qf7 {[%clk 0:00:03]} 35. Rxb7 {[%clk 0:00:35]}  g3 {[%clk 0:00:03]} 36. e5+ {[%clk 0:00:33]}  Kh8 {[%clk 0:00:03]} 37. exf6 {[%clk 0:00:33]}  Bxf6 {[%clk 0:00:02]} 38. Bxf6+ {[%clk 0:00:30]}  Qxf6 {[%clk 0:00:02]} 39. Qe4 {[%clk 0:00:30]}  Qg7 {[%clk 0:00:02]} 40. d6 {[%clk 0:00:27]}  g2+ {[%clk 0:00:02]} 41. Qxg2 {[%clk 0:00:26]}  Qa1+ {[%clk 0:00:03]} 42. Qg1 {[%clk 0:00:27]}  Qxg1+ {[%clk 0:00:03]} 43. Kxg1 {[%clk 0:00:27]}  Rg8+ {[%clk 0:00:03]} 44. Kf2 {[%clk 0:00:26]}  cxd6 {[%clk 0:00:04]} 45. Rh7# {[%clk 0:00:25]} 1-0


[Site "https://www.chess.com"]

[Event "Titled Tuesday Blitz July 18 Early 2023"]
[White "Mazurkiewicz, Michal"]
[Black "Barwinska, Ewa"]
[WhiteFideId "1124943"]
[BlackFideId "21833761"]
[WhiteElo "2412"]
[BlackElo "2300"]
[Result "1-0"]
[Round "11"]
[TimeControl "180+2"]
[Date "2023.07.18"]
[WhiteClock "0:02:03"]
[BlackClock "0:00:03"]
[Board "109"]

1. e4 {[%clk 0:02:58]}  c5 {[%clk 0:02:58]} 2. Nf3 {[%clk 0:02:58]}  d6 {[%clk 0:02:58]} 3. g3 {[%clk 0:02:58]}  Nc6 {[%clk 0:02:51]} 4. Bg2 {[%clk 0:02:59]}  g6 {[%clk 0:02:48]} 5. O-O {[%clk 0:02:58]}  Bg7 {[%clk 0:02:47]} 6. d3 {[%clk 0:02:58]}  Nf6 {[%clk 0:02:41]} 7. Re1 {[%clk 0:02:58]}  O-O {[%clk 0:02:41]} 8. e5 {[%clk 0:02:58]}  dxe5 {[%clk 0:02:40]} 9. Nxe5 {[%clk 0:02:59]}  Nxe5 {[%clk 0:02:37]} 10. Rxe5 {[%clk 0:03:00]}  Qc7 {[%clk 0:02:36]} 11. Bf4 {[%clk 0:03:00]}  Qb6 {[%clk 0:02:22]} 12. Nc3 {[%clk 0:03:00]}  Qxb2 {[%clk 0:02:15]} 13. Rxc5 {[%clk 0:02:59]}  Nh5 {[%clk 0:02:12]} 14. Be3 {[%clk 0:02:51]}  Qa3 {[%clk 0:01:18]} 15. Rb1 {[%clk 0:02:48]}  Be6 {[%clk 0:01:12]} 16. Nb5 {[%clk 0:02:46]}  Qxa2 {[%clk 0:01:09]} 17. Nc7 {[%clk 0:02:45]}  Rab8 {[%clk 0:00:58]} 18. Nxe6 {[%clk 0:02:45]}  Qxe6 {[%clk 0:00:56]} 19. Rc7 {[%clk 0:02:45]}  b5 {[%clk 0:00:44]} 20. Rxa7 {[%clk 0:02:34]}  b4 {[%clk 0:00:40]} 21. Bc5 {[%clk 0:02:30]}  Rfe8 {[%clk 0:00:20]} 22. Rxb4 {[%clk 0:02:28]}  Rxb4 {[%clk 0:00:19]} 23. Bxb4 {[%clk 0:02:29]}  Qb6 {[%clk 0:00:20]} 24. Rxe7 {[%clk 0:02:18]}  Rb8 {[%clk 0:00:13]} 25. c3 {[%clk 0:02:17]}  Nf6 {[%clk 0:00:08]} 26. h3 {[%clk 0:02:10]}  Qd8 {[%clk 0:00:07]} 27. Qe2 {[%clk 0:02:07]}  Nd5 {[%clk 0:00:07]} 28. Bxd5 {[%clk 0:02:04]}  Qxd5 {[%clk 0:00:05]} 29. Re8+ {[%clk 0:02:04]}  Bf8 {[%clk 0:00:03]} 30. Rxb8 {[%clk 0:02:03]} 1-0


[Site "https://www.chess.com"]

[Event "Titled Tuesday Blitz July 18 Early 2023"]
[White "Wang, Alexander J"]
[Black "KorolDimitriy75"]
[WhiteFideId "30955270"]
[WhiteElo "2298"]
[BlackElo "2407"]
[Result "1/2-1/2"]
[Round "11"]
[TimeControl "180+2"]
[Date "2023.07.18"]
[WhiteClock "0:00:13"]
[BlackClock "0:00:03"]
[Board "110"]

1. e4 {[%clk 0:02:57]}  c5 {[%clk 0:02:58]} 2. Nf3 {[%clk 0:02:56]}  d6 {[%clk 0:02:59]} 3. d4 {[%clk 0:02:56]}  cxd4 {[%clk 0:03:00]} 4. Nxd4 {[%clk 0:02:56]}  Nf6 {[%clk 0:03:00]} 5. Nc3 {[%clk 0:02:55]}  g6 {[%clk 0:03:01]} 6. g3 {[%clk 0:02:55]}  Nc6 {[%clk 0:03:00]} 7. Bg2 {[%clk 0:02:55]}  Nxd4 {[%clk 0:02:59]} 8. Qxd4 {[%clk 0:02:54]}  Bg7 {[%clk 0:02:59]} 9. O-O {[%clk 0:02:54]}  O-O {[%clk 0:02:59]} 10. h3 {[%clk 0:02:51]}  Be6 {[%clk 0:02:58]} 11. Qd1 {[%clk 0:02:51]}  Qc7 {[%clk 0:02:31]} 12. Be3 {[%clk 0:02:44]}  a6 {[%clk 0:02:15]} 13. a4 {[%clk 0:02:31]}  Rfc8 {[%clk 0:02:08]} 14. f4 {[%clk 0:02:20]}  Nd7 {[%clk 0:01:46]} 15. Rb1 {[%clk 0:02:08]}  b5 {[%clk 0:01:15]} 16. axb5 {[%clk 0:02:07]}  axb5 {[%clk 0:01:15]} 17. Nd5 {[%clk 0:01:59]}  Bxd5 {[%clk 0:01:11]} 18. Qxd5 {[%clk 0:01:58]}  Nf6 {[%clk 0:00:31]} 19. Qxb5 {[%clk 0:01:46]}  Rab8 {[%clk 0:00:27]} 20. Qd3 {[%clk 0:01:43]}  Qxc2 {[%clk 0:00:26]} 21. Qxc2 {[%clk 0:01:43]}  Rxc2 {[%clk 0:00:26]} 22. e5 {[%clk 0:01:41]}  Ne8 {[%clk 0:00:20]} 23. exd6 {[%clk 0:01:33]}  Nxd6 {[%clk 0:00:20]} 24. b3 {[%clk 0:01:28]}  Rc3 {[%clk 0:00:19]} 25. Bf2 {[%clk 0:01:26]}  Rcxb3 {[%clk 0:00:19]} 26. Rxb3 {[%clk 0:01:26]}  Rxb3 {[%clk 0:00:20]} 27. Re1 {[%clk 0:01:26]}  Bf6 {[%clk 0:00:20]} 28. g4 {[%clk 0:01:25]}  h6 {[%clk 0:00:20]} 29. Bc5 {[%clk 0:01:18]}  Rc3 {[%clk 0:00:16]} 30. Bf2 {[%clk 0:01:14]}  Kg7 {[%clk 0:00:15]} 31. g5 {[%clk 0:01:07]}  hxg5 {[%clk 0:00:12]} 32. fxg5 {[%clk 0:01:08]}  Bxg5 {[%clk 0:00:11]} 33. Bd4+ {[%clk 0:01:07]}  Bf6 {[%clk 0:00:11]} 34. Bxc3 {[%clk 0:01:06]}  Bxc3 {[%clk 0:00:12]} 35. Rxe7 {[%clk 0:01:04]}  Nf5 {[%clk 0:00:12]} 36. Rb7 {[%clk 0:00:57]}  Bd4+ {[%clk 0:00:11]} 37. Kh2 {[%clk 0:00:52]}  Be5+ {[%clk 0:00:11]} 38. Kg1 {[%clk 0:00:47]}  Nd6 {[%clk 0:00:11]} 39. Rd7 {[%clk 0:00:43]}  Kh6 {[%clk 0:00:10]} 40. Bd5 {[%clk 0:00:39]}  f5 {[%clk 0:00:10]} 41. Re7 {[%clk 0:00:37]}  Bf4 {[%clk 0:00:09]} 42. Re6 {[%clk 0:00:32]}  Kg5 {[%clk 0:00:09]} 43. Bc6 {[%clk 0:00:30]}  Kh5 {[%clk 0:00:05]} 44. Be8 {[%clk 0:00:28]}  Nxe8 {[%clk 0:00:04]} 45. Rxe8 {[%clk 0:00:29]}  Kh4 {[%clk 0:00:04]} 46. Kg2 {[%clk 0:00:29]}  Kg5 {[%clk 0:00:04]} 47. Rh8 {[%clk 0:00:28]}  Be5 {[%clk 0:00:04]} 48. Rh7 {[%clk 0:00:27]}  Bf4 {[%clk 0:00:03]} 49. Kf3 {[%clk 0:00:28]}  Be5 {[%clk 0:00:04]} 50. Rb7 {[%clk 0:00:26]}  Bc3 {[%clk 0:00:03]} 51. Rb3 {[%clk 0:00:24]}  Bd4 {[%clk 0:00:03]} 52. Rd3 {[%clk 0:00:24]}  Be5 {[%clk 0:00:02]} 53. Rd5 {[%clk 0:00:24]}  Bc3 {[%clk 0:00:03]} 54. Ke2 {[%clk 0:00:24]}  Bb2 {[%clk 0:00:02]} 55. Kd1 {[%clk 0:00:24]}  Ba1 {[%clk 0:00:02]} 56. Kd2 {[%clk 0:00:24]}  Bf6 {[%clk 0:00:01]} 57. Rd3 {[%clk 0:00:22]}  Kh4 {[%clk 0:00:01]} 58. Rf3 {[%clk 0:00:22]}  Be5 {[%clk 0:00:01]} 59. Ke2 {[%clk 0:00:22]}  Bg3 {[%clk 0:00:01]} 60. Ke3 {[%clk 0:00:19]}  Kxh3 {[%clk 0:00:02]} 61. Ke2 {[%clk 0:00:20]}  Kg4 {[%clk 0:00:02]} 62. Ra3 {[%clk 0:00:19]}  g5 {[%clk 0:00:02]} 63. Kf1 {[%clk 0:00:19]}  Be5 {[%clk 0:00:02]} 64. Ra4+ {[%clk 0:00:19]}  f4 {[%clk 0:00:02]} 65. Kg2 {[%clk 0:00:18]}  Bd6 {[%clk 0:00:02]} 66. Re4 {[%clk 0:00:17]}  Bc5 {[%clk 0:00:02]} 67. Rc4 {[%clk 0:00:16]}  Be3 {[%clk 0:00:02]} 68. Ra4 {[%clk 0:00:16]}  Kf5 {[%clk 0:00:02]} 69. Ra5+ {[%clk 0:00:15]}  Kg4 {[%clk 0:00:02]} 70. Ra4 {[%clk 0:00:15]}  Kh4 {[%clk 0:00:02]} 71. Rc4 {[%clk 0:00:13]}  Kg4 {[%clk 0:00:03]} 72. Ra4 {[%clk 0:00:13]} 1/2-1/2


[Site "https://www.chess.com"]